bitfinex/quotes_ETHUSD_20260202
["timestamp","ask_amount","ask_price","bid_price","bid_amount"]
[1770045480548,5.13701527,2356.7,2354.8,0.001]
[1770045480700,0.60260153,2356.9,2355.0,1.06154865]
[1770045480904,5.13701527,2357.0,2354.8,0.001]
[1770045481235,5.704708,2356.6,2354.8,0.001]
[1770045481422,0.889,2356.9,2355.0,1.06157064]
[1770045481628,5.13701527,2357.3,2355.0,6.40909421]
[1770045481807,2.21741,2357.6,2355.3,5.34752357]
[1770045482005,5.13701527,2357.3,2356.0,0.001]
[1770045482217,3.64341,2357.4,2354.8,4.24759868]
[1770045482218,5.13701527,2356.9,2354.8,4.24759868]
[1770045482513,0.413041,2357.5,2355.3,5.34752357]
[1770045482514,0.310641,2357.5,2355.3,5.34752357]
[1770045482734,0.889,2357.9,2355.8,0.001]
[1770045483058,5.13701527,2357.8,2355.8,0.001]
[1770045483232,0.889,2358.1,2355.8,0.001]
[1770045483233,5.13701527,2357.6,2355.8,0.001]
[1770045483435,5.6507168,2357.5,2355.8,0.001]
[1770045483649,0.51370153,2357.5,2355.8,0.001]
[1770045483975,5.13701527,2357.8,2355.8,0.001]
[1770045484112,2.812465,2357.7,2355.8,0.001]
[1770045484313,9.50226278,2358.6,2355.8,5.34852357]
[1770045484314,5.13701527,2358.4,2355.8,5.34852357]
[1770045484517,0.51370153,2358.3,2355.9,5.89949702]
[1770045484735,0.51370153,2358.3,2355.9,5.88237593]
[1770045484949,3.437,2358.2,2355.9,5.88237593]
[1770045485246,5.13701527,2358.1,2355.9,0.53485236]
[1770045485551,5.13701527,2358.1,2355.8,5.34852357]
[1770045485857,5.13701527,2358.1,2355.9,1.06116558]
[1770045486075,5.13701527,2358.7,2355.9,6.40868915]
[1770045486355,5.13701527,2358.2,2355.8,0.001]
[1770045486654,5.37058557,2357.3,2355.8,0.001]
[1770045486951,0.889,2357.2,2355.8,0.001]
[1770045487121,5.13701527,2357.1,2355.8,0.001]
[1770045487629,0.889,2357.3,2355.8,0.001]
[1770045488025,0.889,2357.6,2355.8,0.001]
[1770045488251,0.60260153,2357.5,2355.8,0.001]
[1770045488453,5.7396168,2357.5,2355.8,0.001]
[1770045488750,5.13701527,2357.4,2355.8,0.001]
[1770045488941,0.60260153,2357.5,2355.8,0.001]
[1770045489137,5.13701527,2357.4,2355.8,0.001]
[1770045489855,5.13701527,2357.2,2355.8,0.001]
[1770045490221,0.89,2357.6,2355.8,0.001]
[1770045490533,5.13701527,2357.5,2355.8,0.001]
[1770045490747,0.60270153,2357.4,2355.8,0.001]
[1770045491255,5.13701527,2357.2,2355.8,0.001]
[1770045491471,0.60270153,2357.4,2355.8,0.001]
[1770045491620,8.65935627,2357.7,2355.8,0.001]
[1770045491826,5.13701527,2357.7,2355.8,0.001]
[1770045492528,5.13701527,2357.6,2355.8,0.001]
[1770045492729,0.89,2357.9,2355.8,0.001]
[1770045493038,5.13701527,2357.7,2355.8,0.001]
[1770045493345,0.81289023,2357.6,2355.8,0.001]
[1770045493752,2.36314,2357.3,2355.8,0.001]
[1770045493956,5.13701527,2357.4,2355.8,0.001]
[1770045494129,2.662032,2357.3,2355.8,0.001]
[1770045494330,5.13701527,2357.4,2355.8,0.001]
[1770045494544,0.51370153,2357.3,2355.8,0.001]
[1770045494737,5.37058557,2357.2,2355.8,0.001]
[1770045495031,6.02701527,2357.1,2356.0,0.001]
[1770045496265,0.90262174,2357.0,2356.0,0.001]
[1770045496472,0.89,2357.1,2356.0,0.001]
[1770045496966,0.90272535,2357.1,2356.0,0.001]
[1770045497164,1.50576259,2357.4,2356.0,0.001]
[1770045497165,0.90266432,2357.0,2356.0,0.001]
[1770045497350,1.12062852,2357.3,2356.0,0.001]
[1770045497551,2.3788069,2357.2,2356.0,0.001]
[1770045497764,0.90653927,2357.1,2356.0,0.001]
[1770045497970,0.90653927,2357.0,2356.0,0.001]
[1770045498282,0.90890411,2356.9,2356.0,0.001]
[1770045498483,1.12062852,2357.1,2356.0,0.001]
[1770045498484,0.90890411,2356.8,2356.0,0.001]
[1770045498683,1.12062852,2357.3,2356.0,0.001]
[1770045498883,1.12062852,2357.2,2356.0,0.001]
[1770045499177,1.12062852,2356.8,2356.0,0.001]
[1770045499345,2.22483412,2357.1,2356.0,0.001]
[1770045499346,1.12062852,2357.1,2356.0,0.001]
[1770045499987,1.12062852,2357.0,2356.0,0.001]
[1770045500901,1.12062852,2356.8,2356.0,0.001]
[1770045501193,1.12062852,2356.7,2356.0,0.001]
[1770045501507,1.12062852,2356.6,2356.0,0.001]
[1770045501696,1.12062852,2356.7,2356.0,0.001]
[1770045502343,1.12062852,2356.6,2356.0,0.001]
[1770045503313,1.12062852,2356.3,2356.0,0.001]
[1770045503582,1.12062852,2356.3,2355.8,0.001]
[1770045503790,1.12062852,2356.2,2355.8,0.001]
[1770045503958,1.12062852,2356.0,2355.8,0.001]
[1770045504161,1.12062852,2356.0,2354.9,1.06158215]
[1770045504371,1.12062852,2355.9,2355.0,2.19304246]
[1770045504695,1.12062852,2355.9,2355.0,1.06156631]
[1770045504878,1.12062852,2355.9,2354.8,0.001]
[1770045505045,1.12062852,2355.8,2355.0,1.0615577]
[1770045505458,1.12062852,2355.9,2355.0,1.0615577]
[1770045505664,1.12062852,2355.8,2355.1,0.53079998]
[1770045505987,1.12062852,2355.8,2354.9,4.24636156]
[1770045506189,1.12062852,2355.8,2354.9,1.06159143]
[1770045506397,1.12062852,2355.8,2354.8,4.24757922]
[1770045506398,1.12062852,2355.8,2355.0,1.06155229]
[1770045506692,1.50466259,2356.3,2355.1,1.0615141]
[1770045506999,1.50466259,2356.4,2355.2,0.53076183]
[1770045507764,1.50466259,2356.5,2355.3,1.06143591]
[1770045508301,1.50466259,2356.4,2355.3,1.06143591]
[1770045508465,1.50466259,2356.5,2355.3,1.06143591]
[1770045509600,0.0011,2357.4,2356.3,9.54886442]
[1770045509901,7.59387416,2358.6,2356.3,9.54886442]
[1770045509902,0.0011,2358.6,2357.9,0.01712109]
[1770045510107,6.11844041,2359.6,2357.5,1.4311327]
[1770045510282,0.0011,2359.1,2357.4,1.95049037]
[1770045510481,6.11954041,2359.1,2357.5,0.61924518]
[1770045510687,6.11844041,2358.9,2357.4,0.89]
[1770045510884,7.02911429,2358.8,2357.2,1.95053969]
[1770045511217,6.11954041,2358.8,2357.3,1.0605287]
[1770045511502,0.91015276,2358.7,2357.2,0.89]
[1770045511686,6.11844041,2358.7,2357.2,0.89]
[1770045511889,6.11844041,2358.5,2357.2,0.89]
[1770045512096,0.91137072,2358.4,2357.2,1.95055387]
[1770045512272,6.11954041,2358.4,2357.1,1.06061834]
[1770045512600,6.11954041,2358.4,2357.2,1.06058016]
[1770045513013,6.11954041,2358.4,2357.3,0.53030224]
[1770045513326,0.0011,2357.8,2357.3,0.53030224]
[1770045513510,0.0011,2357.8,2357.2,1.06057865]
[1770045513726,6.12064041,2357.8,2356.5,0.22172086]
[1770045513920,7.01064041,2357.8,2356.5,0.22172086]
[1770045514301,6.11844041,2357.6,2356.5,0.22172086]
[1770045514501,6.11954041,2357.5,2356.5,0.22172086]
[1770045515226,6.11954041,2357.5,2355.6,0.89]
[1770045515430,6.11844041,2357.3,2355.7,1.06124782]
[1770045515613,6.11844041,2357.1,2355.7,1.06122852]
[1770045515809,0.89,2357.0,2355.5,0.001]
[1770045516116,0.8911,2357.0,2355.5,0.001]
[1770045516316,1.59084404,2356.9,2355.5,0.001]
[1770045516644,0.0011,2357.0,2355.6,0.01712109]
[1770045516823,0.0011,2357.0,2355.5,0.001]
[1770045517828,0.89,2357.1,2355.5,0.001]
[1770045517829,0.0011,2356.9,2355.5,1.06234578]
[1770045519934,0.0011,2356.9,2355.5,0.001]
[1770045521714,0.0011,2357.8,2356.2,0.01712109]
[1770045521935,0.0011,2357.8,2356.3,1.06098544]
[1770045522239,0.0011,2357.8,2356.4,0.60755765]
[1770045522654,6.12064041,2359.2,2357.1,0.01712109]
[1770045522836,6.11954041,2359.0,2356.9,0.11952109]
[1770045523004,0.0011,2359.2,2356.9,3.50995874]
[1770045523205,6.12064041,2359.2,2357.0,0.43999587]
[1770045523511,6.11954041,2359.0,2357.0,0.43999587]
[1770045523707,6.11954041,2358.8,2356.8,0.89]
[1770045523915,6.11954041,2358.8,2356.9,1.06071534]
[1770045524116,0.89,2358.7,2356.9,1.06071534]
[1770045524324,7.00954041,2358.7,2356.9,1.06071534]
[1770045524522,0.89,2358.6,2357.0,0.61935767]
[1770045524737,7.00954041,2358.6,2357.0,0.61935767]
[1770045525343,6.11954041,2358.6,2357.0,0.61935767]
[1770045525640,0.70095404,2358.7,2357.0,0.61935767]
[1770045525641,7.00954041,2358.5,2357.0,0.61935767]
[1770045525942,0.0011,2358.0,2357.1,1.06062534]
[1770045526142,0.0011,2358.0,2357.2,0.59224844]
[1770045526313,0.0011,2359.2,2357.2,0.59224844]
[1770045526314,6.12009041,2359.0,2357.2,10.12399177]
[1770045526916,6.12009041,2359.0,2357.2,8.85126064]
[1770045527237,2.92166335,2359.0,2357.2,8.85126064]
[1770045527439,0.89,2358.9,2357.1,1.06062534]
[1770045527657,8.9353581,2358.9,2357.2,0.68124844]
[1770045528015,8.9353581,2358.9,2357.2,1.74180833]
[1770045528212,8.0453581,2358.3,2356.4,0.60755765]
[1770045528468,8.0453581,2358.3,2356.4,1.06091337]
[1770045528469,8.0453581,2357.9,2356.4,1.06091337]
[1770045528753,8.9353581,2357.8,2356.3,4.24382582]
[1770045528970,8.9353581,2357.8,2355.7,0.001]
[1770045528971,8.0453581,2357.4,2355.7,0.001]
[1770045529140,8.0453581,2357.4,2355.5,0.001]
[1770045529141,8.0453581,2356.6,2355.5,0.001]
[1770045529317,8.0453581,2356.0,2354.5,0.001]
[1770045529521,8.0453581,2356.0,2354.6,1.06172251]
[1770045529764,0.2335703,2356.4,2354.5,0.001]
[1770045529765,8.0453581,2355.8,2354.5,0.001]
[1770045529979,8.31451126,2355.4,2352.5,9.53174333]
[1770045530250,8.31451126,2354.5,2352.9,1.0624878]
[1770045530457,0.889,2354.4,2352.4,4.25089032]
[1770045530751,3.34677582,2355.3,2352.1,4.25147674]
[1770045530752,9.39220339,2355.3,2353.5,1.17681876]
[1770045530921,0.889,2355.4,2353.5,1.17681876]
[1770045531312,8.31451126,2355.9,2353.7,0.01712109]
[1770045531517,8.31451126,2355.9,2353.8,0.90612109]
[1770045531518,0.89,2355.9,2353.8,0.90612109]
[1770045532047,0.89,2356.7,2354.6,0.01712109]
[1770045532226,0.89,2356.6,2354.6,0.97200753]
[1770045532614,8.31451126,2357.3,2354.7,0.89]
[1770045532814,8.31451126,2357.0,2354.7,0.89]
[1770045533034,8.31451126,2356.8,2354.7,0.89]
[1770045533221,10.89871926,2356.5,2354.7,0.89]
[1770045533422,8.31451126,2356.4,2354.4,0.01712109]
[1770045533641,0.89,2356.3,2354.3,1.06188676]
[1770045534225,0.89,2356.2,2354.3,1.06188676]
[1770045535250,0.89,2356.2,2354.0,9.53174333]
[1770045535251,8.31451126,2355.6,2353.8,1.06209604]
[1770045535479,8.31451126,2355.4,2353.4,1.06227581]
[1770045535748,8.31451126,2355.4,2352.5,0.239101]
[1770045535749,8.31451126,2354.8,2352.9,4.24997253]
[1770045535963,0.89,2354.7,2353.5,4.36353335]
[1770045536122,0.89,2354.7,2353.6,0.43635334]
[1770045536323,0.89,2354.7,2353.5,1.17682107]
[1770045536560,0.89,2354.7,2353.5,0.1145849]
[1770045536749,11.20287026,2354.6,2353.5,0.1145849]
[1770045536929,8.31451126,2354.6,2353.5,0.1145849]
[1770045537332,0.89,2354.7,2352.5,1.06267511]
[1770045537333,8.31451126,2354.2,2352.5,1.06267511]
[1770045537517,0.1024,2354.5,2351.6,12.7408542]
[1770045537518,9.14596239,2354.1,2352.9,1.06251376]
[1770045537724,9.14596239,2354.1,2351.9,4.25186404]
[1770045538024,0.2335703,2354.7,2352.5,1.06269925]
[1770045538025,8.31451126,2354.7,2352.5,1.06269925]
[1770045538217,0.89,2354.6,2352.5,1.06269925]
[1770045538419,8.31451126,2354.4,2352.5,1.06269925]
[1770045538744,0.89,2354.3,2352.5,1.06269925]
[1770045538949,8.31451126,2354.4,2353.8,0.001]
[1770045539150,0.89,2354.3,2352.5,1.06269925]
[1770045539327,8.31451126,2354.9,2352.6,1.48452396]
[1770045539647,10.36319446,2355.5,2352.6,1.48452396]
[1770045539648,8.31451126,2354.7,2353.5,0.001]
[1770045539824,0.89,2354.6,2353.5,0.001]
[1770045540028,8.31451126,2354.6,2353.5,0.001]
[1770045540228,10.36319446,2355.5,2353.5,0.001]
[1770045540229,8.31451126,2355.4,2353.5,0.001]
[1770045540535,0.89,2355.4,2353.5,0.001]
[1770045540735,8.31451126,2355.3,2353.5,0.001]
[1770045540946,0.89,2355.4,2353.5,0.001]
[1770045540947,8.31451126,2355.0,2353.5,0.001]
[1770045542139,0.89,2355.2,2353.5,1.06324771]
[1770045542451,9.20451126,2355.2,2353.5,0.001]
[1770045542760,9.23496239,2355.1,2353.5,0.001]
[1770045543146,0.0011,2355.7,2353.5,0.001]
[1770045543349,0.8911,2355.7,2353.5,0.001]
[1770045544104,8.31451126,2355.5,2353.5,0.001]
[1770045544256,8.31451126,2355.3,2353.5,0.001]
[1770045544776,8.31451126,2355.6,2353.5,0.001]
[1770045544927,1.72156113,2355.5,2353.5,0.001]
[1770045545257,11.47194126,2355.4,2353.5,0.001]
[1770045545573,8.31451126,2355.3,2353.5,0.001]
[1770045545932,8.31451126,2354.9,2353.5,0.001]
[1770045546260,9.14607239,2355.5,2353.5,0.001]
[1770045546557,0.89,2355.0,2353.5,0.001]
[1770045547560,0.89,2355.1,2353.5,0.001]
[1770045547860,0.0011,2355.7,2353.5,0.001]
[1770045547861,0.8911,2355.7,2353.7,0.01712109]
[1770045548064,0.8911,2355.7,2353.5,8.48960834]
[1770045548259,0.8911,2355.7,2353.6,1.06220258]
[1770045548465,9.20561126,2355.7,2353.7,1.38006212]
[1770045548631,8.31451126,2355.5,2353.6,1.06220258]
[1770045549151,0.8911,2355.7,2353.5,1.06322051]
[1770045549152,8.31451126,2355.3,2353.5,1.06322051]
[1770045549665,8.31451126,2354.7,2352.8,1.06254816]
[1770045549960,9.20451126,2354.6,2352.8,4.25016746]
[1770045550173,10.12496239,2354.5,2352.9,1.48750991]
[1770045550384,10.12496239,2354.5,2352.9,1.06249316]
[1770045550746,10.12496239,2354.5,2352.9,1.06247805]
[1770045551373,0.89,2354.4,2352.6,0.001]
[1770045551547,9.20451126,2354.4,2352.7,1.06260171]
[1770045551743,0.1024,2354.9,2352.7,1.06260171]
[1770045551744,9.20451126,2354.9,2352.9,1.06251292]
[1770045551943,8.31451126,2354.9,2353.0,0.53125873]
[1770045552145,8.31451126,2354.9,2353.1,1.06242828]
[1770045552378,8.31451126,2355.6,2353.6,0.01712109]
[1770045552690,0.0011,2355.7,2353.7,9.56225545]
[1770045552891,9.20661126,2355.7,2353.3,8.48860834]
[1770045553057,0.0011,2355.0,2353.7,0.01712109]
[1770045553883,0.0011,2355.0,2353.4,0.86081294]
[1770045554246,0.0011,2355.0,2353.3,1.06233799]
[1770045554476,0.0011,2355.0,2353.8,0.01712109]
[1770045554681,0.0011,2355.7,2353.9,0.01712109]
[1770045554877,0.0011,2355.7,2354.0,0.891]
[1770045555048,0.0011,2355.7,2354.2,0.01712109]
[1770045555243,0.0011,2355.7,2354.2,9.56225545]
[1770045555475,0.0011,2355.7,2354.0,0.891]
[1770045555476,0.0011,2355.7,2354.3,0.95622555]
[1770045555658,0.0011,2355.7,2354.0,0.891]
[1770045556180,0.0011,2355.7,2354.2,1.06193186]
[1770045557679,0.0011,2355.9,2354.2,1.06193186]
[1770045557680,0.0011,2355.9,2354.7,0.01712109]
[1770045557866,0.0011,2355.9,2354.4,9.54513436]
[1770045558356,0.0011,2355.9,2354.5,1.06179655]
[1770045558549,0.0011,2355.9,2354.6,1.48541171]
[1770045559985,0.0011,2355.9,2354.5,1.06179655]
[1770045559986,11.66451675,2355.9,2354.5,1.06179655]
[1770045560162,11.66451675,2355.9,2354.4,1.06183986]
[1770045560163,0.0011,2355.9,2354.4,1.06183986]
[1770045561463,0.0011,2355.9,2354.5,9.54513436]
[1770045561649,0.0011,2355.9,2354.8,0.01712109]
[1770045561855,0.0011,2356.9,2355.2,0.01712109]
[1770045562089,0.0011,2356.9,2355.5,9.56225545]
[1770045562384,0.0011,2356.9,2355.3,1.06143591]
[1770045562888,0.0011,2356.9,2355.4,0.89]
[1770045564395,0.0011,2356.9,2355.5,1.06134578]
[1770045564902,11.66341675,2358.3,2355.9,9.54513436]
[1770045565054,11.66341675,2357.9,2355.8,0.01712109]
[1770045565253,11.66341675,2357.6,2355.5,1.95134578]
[1770045565670,14.04965475,2357.3,2355.5,1.95134578]
[1770045565899,11.66341675,2357.3,2355.5,1.95134578]
[1770045566516,11.66341675,2357.9,2355.8,9.56225545]
[1770045566801,1.16634168,2357.8,2356.1,0.01712109]
[1770045566998,1.16634168,2357.8,2356.2,0.89]
[1770045567203,1.60339176,2358.6,2356.5,0.01712109]
[1770045567204,11.66341675,2358.6,2356.5,0.01712109]
[1770045567410,0.0011,2356.9,2356.5,0.01712109]
[1770045567700,11.66341675,2358.6,2356.5,0.01712109]
[1770045567904,11.66451675,2359.2,2357.1,0.01712109]
[1770045568196,11.66451675,2359.2,2357.4,0.01712109]
[1770045568197,1.16645168,2359.1,2357.4,0.01712109]
[1770045568401,11.66341675,2359.0,2357.3,1.06053535]
[1770045568587,12.55341675,2359.0,2357.3,1.06053535]
[1770045568789,12.55341675,2359.0,2356.5,9.54513436]
[1770045568790,11.66341675,2358.8,2356.0,4.24430384]
[1770045568968,11.66341675,2358.6,2356.4,0.89]
[1770045569168,0.1024,2358.9,2356.7,1.06078874]
[1770045569169,12.92009222,2358.5,2356.7,1.06078874]
[1770045569365,11.66341675,2358.1,2356.4,0.89]
[1770045569564,11.66341675,2357.7,2356.1,1.06106824]
[1770045569793,2.02702551,2358.0,2355.9,0.95622555]
[1770045569794,11.66341675,2357.5,2355.9,0.95622555]
[1770045569996,11.66341675,2357.5,2355.6,0.89]
[1770045570201,11.66341675,2357.3,2355.7,1.06123657]
[1770045570502,1.16634168,2357.6,2355.6,0.89]
[1770045570503,11.66341675,2357.1,2355.6,1.9512992]
[1770045570670,1.39991198,2357.6,2355.6,1.9512992]
[1770045570671,12.82975843,2357.6,2355.6,1.9512992]
[1770045571396,11.66341675,2357.3,2355.6,1.9512992]
[1770045571573,12.82975843,2357.2,2355.6,2.99548706]
[1770045571773,11.66341675,2357.2,2355.6,1.95129522]
[1770045573199,12.82975843,2357.6,2355.6,1.95129522]
[1770045573973,1.13277408,2358.6,2356.5,11.61130091]
[1770045574174,1.13277408,2358.6,2356.4,0.01712109]
[1770045574175,0.0011,2359.2,2357.3,0.01712109]
[1770045574406,0.0011,2359.2,2357.9,0.01712109]
[1770045574573,0.0011,2359.2,2357.7,1.06035543]
[1770045576074,0.0011,2359.2,2357.8,0.89]
[1770045576379,0.0011,2359.2,2357.9,1.06026549]
[1770045576573,0.0011,2359.2,2358.0,0.61913275]
[1770045577284,0.0011,2359.2,2358.0,10.16426711]
[1770045577685,0.0011,2360.4,2358.6,9.54513436]
[1770045577994,0.0011,2360.4,2358.7,0.89]
[1770045578503,0.0011,2360.4,2359.3,1.05963633]
[1770045578678,0.0011,2360.4,2359.4,1.41981817]
[1770045578878,11.66341675,2361.4,2359.5,9.54513436]
[1770045579308,11.66341675,2361.4,2359.6,0.01712109]
[1770045579677,0.89,2362.0,2359.9,0.01712109]
[1770045579882,11.66341675,2362.7,2360.6,0.01712109]
[1770045580098,12.86509476,2362.6,2360.7,0.89]
[1770045580298,11.66341675,2362.6,2360.7,0.89]
[1770045580505,11.66341675,2362.6,2360.8,1.05896306]
[1770045580809,0.35336334,2362.8,2361.1,0.01712109]
[1770045580984,0.003,2363.1,2361.1,0.97334664]
[1770045581176,0.003,2363.1,2361.4,0.01712109]
[1770045581381,0.003,2363.1,2361.5,0.889]
[1770045581776,11.66641675,2363.1,2361.1,1.84522555]
[1770045581986,11.66641675,2363.1,2361.1,0.889]
[1770045582415,11.66341675,2362.9,2361.2,1.05878366]
[1770045582599,0.003,2363.1,2361.2,1.05878366]
[1770045582600,0.003,2363.1,2361.9,0.01712109]
[1770045582911,11.66341675,2364.1,2362.5,0.01712109]
[1770045583086,1.16634168,2364.0,2362.2,0.01712109]
[1770045583707,1.16634168,2364.0,2362.6,0.01712109]
[1770045583913,1.16634168,2364.0,2362.7,0.889]
[1770045584313,0.36263271,2365.0,2363.2,0.1024]
[1770045584614,12.55241675,2366.0,2363.3,1.07496393]
[1770045584815,11.66341675,2365.5,2363.4,0.889]
[1770045585218,11.66341675,2366.1,2364.1,0.01712109]
[1770045585431,11.66341675,2366.1,2364.4,0.01712109]
[1770045585716,11.66341675,2366.1,2364.2,0.90612109]
[1770045586031,11.66341675,2366.1,2363.8,0.01712109]
[1770045586032,11.66341675,2366.1,2363.6,9.64753436]
[1770045586183,11.66341675,2366.1,2364.1,0.889]
[1770045586379,11.66341675,2366.1,2364.2,1.05744014]
[1770045586835,11.66341675,2366.7,2364.4,0.01712109]
[1770045587110,11.66341675,2366.5,2364.5,0.888]
[1770045587312,13.56227383,2366.4,2364.6,0.01712109]
[1770045587509,13.56227383,2366.4,2365.5,0.01712109]
[1770045587510,1.89885708,2366.4,2365.5,0.01712109]
[1770045587709,1.89885708,2366.4,2365.2,0.01712109]
[1770045587710,11.66341675,2367.0,2365.6,0.888]
[1770045588122,11.66341675,2367.0,2364.8,1.5175676]
[1770045588294,11.8380218,2366.8,2364.8,1.5175676]
[1770045588494,6.7246,2366.3,2364.8,1.5175676]
[1770045588714,11.8380218,2366.0,2364.8,1.11183618]
[1770045588913,11.8380218,2366.0,2363.3,9.54513436]
[1770045588914,11.8380218,2365.8,2364.1,1.05744541]
[1770045589223,11.8380218,2365.7,2363.9,0.888]
[1770045589427,6.592084,2365.6,2363.9,0.888]
[1770045589725,11.8380218,2365.0,2363.3,1.1828731]
[1770045589898,15.59400966,2364.8,2363.3,1.1828731]
[1770045590094,12.76800966,2364.7,2363.3,2.24071256]
[1770045591726,14.28073474,2364.9,2363.3,2.24071456]
[1770045592825,14.28073474,2364.9,2363.3,1.1828731]
[1770045593003,14.28073474,2364.9,2363.3,2.24070747]
[1770045593203,1.51687347,2364.8,2363.3,2.24070747]
[1770045593818,1.55540338,2365.9,2363.6,9.54513436]
[1770045593819,12.76800966,2365.6,2363.6,9.54513436]
[1770045594019,1.55540338,2365.9,2363.7,0.888]
[1770045594020,2.44340338,2365.9,2363.7,0.888]
[1770045594225,2.44340338,2365.9,2363.6,9.54513436]
[1770045594226,15.21141304,2365.9,2363.6,9.54513436]
[1770045594399,12.76800966,2365.7,2363.7,0.888]
[1770045594602,12.76800966,2365.5,2363.7,1.05765956]
[1770045594827,12.76800966,2365.3,2363.7,1.05765933]
[1770045594996,12.76800966,2365.1,2363.7,1.05766066]
[1770045595200,0.887,2365.0,2363.5,0.887]
[1770045595395,1.36550097,2364.9,2363.7,1.05765525]
[1770045596639,1.36550097,2364.9,2363.6,4.23082787]
[1770045596836,0.887,2365.3,2363.6,4.23082787]
[1770045597702,0.887,2365.3,2363.5,1.94470858]
[1770045597703,12.76800966,2365.1,2363.5,1.05770858]
[1770045597908,12.76800966,2365.7,2363.5,1.05770858]
[1770045598125,12.76800966,2365.5,2363.5,1.05770858]
[1770045598446,14.13351063,2365.4,2363.6,0.52887219]
[1770045598652,12.76800966,2365.4,2363.7,1.05766383]
[1770045598812,12.76800966,2365.2,2363.6,1.0577073]
[1770045599326,0.887,2365.6,2363.5,1.05775175]
[1770045599327,12.76800966,2365.0,2363.5,1.05775175]
[1770045599504,12.76800966,2365.0,2363.3,6.3011866]
[1770045599505,12.76800966,2364.8,2363.4,4.23115363]
[1770045599710,2.25250097,2364.7,2363.5,1.05772165]
[1770045599909,1.36550097,2364.7,2363.5,1.05771485]
[1770045600118,14.13351063,2364.7,2363.3,1.1828731]
[1770045600326,12.76800966,2364.4,2363.3,1.1828731]
[1770045600731,12.76800966,2364.2,2362.7,1.05810673]
[1770045600962,14.93181063,2364.1,2362.0,5.12069461]
[1770045601126,1.27680097,2364.1,2362.0,0.90412109]
[1770045601319,0.887,2364.2,2362.0,0.90412109]
[1770045601320,13.65500966,2364.2,2362.6,1.05812134]
[1770045601515,13.65500966,2364.2,2363.1,1.05792442]
[1770045601815,2.25250097,2364.7,2363.3,1.05783567]
[1770045602116,12.76800966,2364.5,2362.4,4.23291066]
[1770045602332,12.76800966,2364.5,2362.5,0.887]
[1770045602531,1.27680097,2364.4,2362.7,1.05811148]
[1770045602844,12.76800966,2364.2,2362.6,1.05812473]
[1770045603044,13.65500966,2364.1,2362.6,1.05812473]
[1770045603205,13.65500966,2364.1,2361.6,0.39661436]
[1770045603206,12.76800966,2363.7,2362.0,1.05839997]
[1770045603406,12.76800966,2363.3,2361.6,4.63098877]
[1770045603607,14.04481063,2364.4,2362.7,1.05811148]
[1770045603817,0.887,2364.3,2362.7,1.05811148]
[1770045604229,0.1024,2365.3,2362.7,1.05811148]
[1770045604230,13.65500966,2364.7,2362.7,1.05811148]
[1770045604432,12.76800966,2364.3,2362.6,1.05815338]
[1770045604621,12.76800966,2364.1,2362.0,0.01712109]
[1770045604827,12.76800966,2364.1,2361.8,1.05851469]
[1770045605026,12.76800966,2363.9,2361.9,0.887]
[1770045605240,2.47010097,2364.2,2361.8,1.05851469]
[1770045605241,12.76800966,2363.7,2361.8,1.05851469]
[1770045605443,0.887,2363.8,2361.8,1.05851469]
[1770045605661,1.58310097,2364.2,2362.6,9.54513436]
[1770045605954,1.58310097,2364.2,2361.9,0.66599576]
[1770045605955,12.76800966,2364.0,2361.9,0.66599576]
[1770045606111,9.54513436,2364.9,2361.9,0.66599576]
[1770045606112,12.76800966,2363.8,2361.9,0.66599576]
[1770045606310,12.76800966,2363.8,2361.7,1.52164023]
[1770045606311,0.887,2363.7,2362.8,0.001]
[1770045607140,12.76800966,2363.9,2362.8,0.001]
[1770045607322,0.887,2363.8,2362.8,0.001]
[1770045608933,13.65500966,2363.8,2362.3,0.887]
[1770045609145,1.36550097,2363.7,2362.3,0.887]
[1770045609444,1.09400415,2364.3,2362.3,1.94528947]
[1770045609445,0.887,2364.3,2362.3,1.94528947]
[1770045609746,0.887,2364.3,2362.3,0.887]
[1770045610139,12.76800966,2363.9,2361.7,4.23420201]
[1770045610315,0.90347163,2364.2,2361.9,4.23384206]
[1770045610316,1.09400415,2364.2,2361.9,4.23384206]
[1770045610516,0.90435391,2364.1,2361.9,1.05846987]
[1770045610716,0.90435391,2364.0,2362.0,0.61793494]
[1770045610916,0.887,2364.3,2362.0,0.61793494]
[1770045611226,0.90464238,2364.2,2362.1,21.73194032]
[1770045611421,0.887,2364.3,2362.0,0.61793494]
[1770045611422,13.65500966,2364.3,2362.0,0.61793494]
[1770045611632,0.90481252,2364.2,2362.0,0.61793494]
[1770045611839,1.45598222,2364.1,2362.0,0.61793494]
[1770045612239,0.8881,2364.7,2362.2,12.27263129]
[1770045612442,0.90533984,2364.6,2362.2,12.27263129]
[1770045612617,0.8881,2364.7,2362.9,1.05802192]
[1770045612944,0.8881,2364.7,2363.0,0.887]
[1770045613513,0.0011,2364.7,2363.1,9.47643012]
[1770045613745,0.0011,2364.7,2363.2,1.03805512]
[1770045614124,1.09400415,2365.7,2363.5,21.74906141]
[1770045614313,14.94002766,2365.9,2363.2,1.03805512]
[1770045614517,1.98100415,2366.0,2362.9,13.31353212]
[1770045614518,12.76800966,2365.4,2363.3,0.887]
[1770045614728,13.67288589,2365.3,2363.4,1.05779808]
[1770045615036,13.67288589,2365.3,2362.7,0.01712109]
[1770045615037,12.76800966,2364.7,2362.4,1.05822584]
[1770045615237,12.76800966,2364.3,2362.6,1.05815255]
[1770045615421,12.76800966,2363.9,2362.0,0.61793494]
[1770045615617,16.31508727,2363.8,2362.0,0.887]
[1770045615852,16.31508727,2363.8,2362.4,4.23296332]
[1770045615853,0.887,2363.8,2362.4,4.23296332]
[1770045616063,0.887,2363.8,2362.6,1.05812274]
[1770045616225,0.887,2363.8,2362.6,1.05815015]
[1770045616429,0.887,2363.8,2362.5,1.05817615]
[1770045616657,0.887,2363.8,2362.1,4.23342835]
[1770045616826,0.887,2363.8,2362.2,0.61788086]
[1770045617866,14.74901381,2364.3,2362.2,0.61788086]
[1770045618077,1.09400415,2364.6,2362.6,0.01712109]
[1770045618238,1.45794838,2364.8,2362.3,12.27263129]
[1770045618239,0.90757481,2364.5,2362.7,0.01712109]
[1770045618438,1.09400415,2364.8,2362.8,0.887]
[1770045618637,2.00171585,2364.8,2362.9,1.05802192]